fUSD/lending_fUSD_20240803
["ID","MTS","AMOUNT","RATE_DAILY","PERIOD"]
[333978075,1722661841947,-81689.47923692,0.000158,2]
[333978076,1722661841959,-19889.37369807,0.000158,2]
[333978077,1722661841971,-14901.011465,0.000158,2]
[333978078,1722661842048,-5807.43776704,0.000158,2]
[333978079,1722661842060,-568.13080662,0.000158,2]
[333978144,1722661842680,-7130.5,0.000158,2]
[333978151,1722661842738,-793.22381522,0.000158,2]
[333978153,1722661842750,-6382.07570001,0.000158,2]
[333978159,1722661842805,-9458.147325,0.000158,2]
[333978169,1722661842903,-388.73447332,0.000158,2]
[333978171,1722661842915,-10523.3296,0.000158,2]
[333978173,1722661842926,-689.58071055,0.000158,2]
[333978390,1722661845281,-4941.46703573,0.000158,2]
[333978392,1722661845297,-632.40367227,0.000158,2]
[333978501,1722661846169,-200.0,0.00015773,2]
[333978502,1722661846178,-1376.87500001,0.000158,2]
[333978503,1722661846190,-291.09122005,0.000158,2]
[333978505,1722661846214,-7590.97331251,0.000158,2]
[333978507,1722661846228,-307.30186417,0.000158,2]
[333978509,1722661846239,-12100.25329436,0.000158,2]
[333978511,1722661846252,-1023.445605,0.000158,2]
[333978514,1722661846268,-4803.45941549,0.000158,2]
[333978516,1722661846278,-264.208,0.000158,2]
[333978518,1722661846290,-6377.7,0.000158,2]
[333978520,1722661846301,-74024.90584167,0.000158,2]
[333978522,1722661846313,-300.0,0.000158,2]
[333978525,1722661846332,-616.66,0.000158,2]
[333978527,1722661846344,-130872.06982696,0.000158,2]
[333978529,1722661846356,-5322.75488516,0.000158,2]
[333978539,1722661846443,-418.90836259,0.000158,2]
[333978541,1722661846454,-182747.4519909,0.000158,2]
[333978719,1722662708172,154718.0134982,0.00011,2]
[333978734,1722662832462,6767.08912398,0.00010999,2]
[333978770,1722663031909,-367.76542396,0.000118,2]
[333978771,1722663031918,-634.52844504,0.00012546,2]
[333978772,1722663031930,-26.51155496,0.00012546,2]
[333978773,1722663031940,-418.82809261,0.00012696,2]
[333978774,1722663031950,-196.56350179,0.00012726,2]
[333978775,1722663031959,-155.0,0.00013332,2]
[333978776,1722663031969,-181.41,0.00013699,2]
[333978777,1722663031978,-17.5623094,0.00013973,2]
[333978778,1722663031989,-329.8376906,0.00013973,2]
[333978779,1722663031999,-150.41,0.00013973,2]
[333978780,1722663032009,-826.33,0.00014346,2]
[333978781,1722663032018,-153.09,0.00014347,30]
[333978782,1722663032028,-174.71,0.00014361,2]
[333978783,1722663032038,-250.0,0.00014366,2]
[333978784,1722663032047,-1181.61591329,0.00014407,2]
[333978785,1722663032064,-1453.28408671,0.00014407,2]
[333978786,1722663032074,-350.4,0.00014449,2]
[333978787,1722663032084,-193.02,0.00014572,2]
[333978788,1722663032093,-295.17,0.00014679,2]
[333978789,1722663032103,-649.6,0.00014801,2]
[333978790,1722663032113,-661.04,0.0001481,2]
[333978791,1722663032123,-150.0,0.00014978,2]
[333978792,1722663032132,-429.53,0.00015208,2]
[333978793,1722663032141,-425.87,0.00015208,2]
[333978794,1722663032151,-425.59,0.00015208,2]
[333978795,1722663032161,-356.11,0.00015208,2]
[333978796,1722663032171,-150.0,0.00015208,2]
[333978797,1722663032180,-356.11,0.00015208,2]
[333978798,1722663032190,-356.11,0.00015208,2]
[333978799,1722663032199,-355.69,0.00015208,2]
[333978800,1722663032208,-211.55,0.00015208,2]
[333978801,1722663032217,-1326.04,0.00015209,2]
[333978802,1722663032227,-500.0,0.00015342,2]
[333978803,1722663032236,-150.0,0.00015437,2]
[333978804,1722663032246,-500.0,0.00015438,2]
[333978805,1722663032258,-500.0,0.00015438,2]
[333978806,1722663032267,-628.44,0.00015438,2]
[333978807,1722663032277,-500.0,0.00015438,2]
[333978808,1722663032286,-500.0,0.00015438,2]
[333978809,1722663032296,-500.0,0.00015438,2]
[333978810,1722663032306,-500.0,0.00015438,2]
[333978811,1722663032315,-342.99,0.00015438,2]
[333978812,1722663032325,-500.0,0.00015438,2]
[333978813,1722663032334,-1399.0,0.000155,2]
[333978814,1722663032343,-928.36677,0.0001564,2]
[333978815,1722663032353,-500.0,0.00015673,2]
[333978816,1722663032362,-500.0,0.00015673,2]
[333978817,1722663032371,-500.0,0.00015673,2]
[333978818,1722663032380,-1000.0,0.00015674,2]
[333978819,1722663032389,-500.0,0.00015674,2]
[333978820,1722663032398,-500.0,0.00015674,2]
[333978821,1722663032408,-500.0,0.00015674,2]
[333978822,1722663032417,-200.0,0.00015674,2]
[333978823,1722663032426,-7145.32382037,0.0001569,2]
[333978824,1722663032436,-6821.73198353,0.000157,2]
[333978825,1722663032448,-404.0,0.000157,2]
[333978826,1722663032505,-155.0,0.00012681,2]
[333978827,1722663032515,-4854.30869343,0.000157,2]
[333978828,1722663032527,-4205.98716292,0.000157,2]
[333978829,1722663032538,-3748.19144558,0.000157,2]
[333978830,1722663032552,-621.77146932,0.000157,2]
[333978831,1722663032563,-883.97785601,0.000157,2]
[333978832,1722663032575,-450.25,0.000157,2]
[333978863,1722663039134,-1879.79073718,0.000157,2]
[333978864,1722663039146,-5415.28595203,0.000157,2]
[333978865,1722663039155,-662.5398,0.000157,2]
[333978866,1722663039165,-7500.0,0.000157,2]
[333978867,1722663039175,-165.42961335,0.000157,2]
[333978868,1722663039184,-16513.11596686,0.000157,2]
[333978869,1722663039193,-191.99552924,0.000157,2]
[333978870,1722663039202,-185.80131218,0.000157,2]
[333978871,1722663039213,-809.55846137,0.000157,2]
[333978872,1722663039222,-212.80597628,0.000157,2]
[333978873,1722663039231,-1744.5595118,0.00015713,2]
[333978874,1722663039243,-735.25,0.00015713,2]
[333978875,1722663039254,-596.6636366,0.00015713,2]
[333978876,1722663039265,-1772.79040434,0.00015713,2]
[333978877,1722663039276,-2296.0602676,0.00015713,2]
[333978878,1722663039285,-16513.11596686,0.00015722,2]
[333978879,1722663039295,-7145.32382034,0.00015737,2]
[333978880,1722663039305,-16513.11596686,0.00015744,2]
[333978881,1722663039314,-2916.4666779,0.0001576,2]
[333978898,1722663040460,-4228.85714244,0.0001576,2]
[333978900,1722663040470,-16513.11596686,0.00015767,2]
[333978902,1722663040479,-200.0,0.00015773,2]
[333978904,1722663040489,-200.0,0.00015773,2]
[333978905,1722663040498,-7145.32382034,0.00015783,2]
[333978907,1722663040511,-16513.11596686,0.00015789,2]
[333978909,1722663040520,-27888.4379071,0.0001579,2]
[333978911,1722663040529,-5950.99207965,0.00015799,2]
[333978913,1722663040539,-483903.7685102,0.000158,7]
[333978915,1722663040550,-979.0,0.000158,2]
[333978917,1722663040559,-4305057.06207745,0.000158,2]
[333978919,1722663040571,-61714.21082945,0.000158,2]
[333978922,1722663040596,-10862.09670066,0.000158,2]
[333978924,1722663040608,-381.52401585,0.000158,2]
[333978930,1722663040650,-311.6,0.000158,2]
[333979036,1722663043043,-155.0,0.0001331,2]
[333979037,1722663043053,-245.86598446,0.000158,2]
[333979038,1722663044327,-431.35979728,0.000158,2]
[333979039,1722663044338,-13359.99999999,0.000158,2]
[333979061,1722663046190,-4776.59933758,0.00015799,2]
[333979062,1722663046202,-1174.39274207,0.00015799,2]
[333979063,1722663046212,-4717.00246447,0.000158,2]
[333979064,1722663046223,-2295.18520297,0.000158,2]
[333979065,1722663046280,-454599.49465327,0.000158,2]
[333979066,1722663046292,-1000.18527722,0.000158,2]
[333979067,1722663046303,-545.83585806,0.000158,2]
[333979068,1722663046314,-4107.44016929,0.000158,2]
[333979113,1722664232111,-408.85640308,0.00012617,2]
[333979114,1722664232223,-186.07359692,0.00012617,2]
[333979115,1722664232232,-418.82809261,0.0001269,2]
[333979116,1722664232242,-55.9140562,0.00012696,2]
[333979117,1722664232260,-362.91403641,0.00012696,2]
[333979118,1722664232269,-155.0,0.00012696,2]
[333979119,1722664232280,-155.0,0.00012696,2]
[333979120,1722664232289,-151.17,0.00013699,2]
[333979121,1722664232298,-255.95,0.00013973,2]
[333979122,1722664232308,-1179.12507052,0.0001445,5]
[333979123,1722664232319,-320.87492948,0.0001445,5]
[333979124,1722664232328,-719.68,0.00014478,2]
[333979125,1722664232338,-250.0,0.0001453,2]
[333979126,1722664232348,-153.09,0.00014605,30]
[333979127,1722664232358,-413.16,0.00014606,2]
[333979128,1722664232367,-280.32,0.00014612,2]
[333979129,1722664232376,-156.63,0.00014876,2]
[333979130,1722664232385,-594.93,0.00014881,2]
[333979131,1722664232395,-789.429,0.00015,2]
[333979132,1722664232404,-300.0,0.00015013,2]
[333979133,1722664232413,-500.0,0.000151,5]
[333979134,1722664232423,-1000.0,0.000152,5]
[333979135,1722664232432,-1600.0,0.000153,5]
[333979136,1722664232442,-2100.0,0.000154,5]
[333979137,1722664232451,-633.24365239,0.000155,5]
[333979139,1722664232493,-348.26422483,0.00014451,2]
[333979141,1722664232503,-752.17210597,0.000155,5]
[333979143,1722664232514,-377.01219169,0.000155,5]
[333979145,1722664232527,-432.87173,0.000155,5]
[333979149,1722664237977,-526.17759152,0.00014667,2]
[333979150,1722664237987,-127.37778794,0.000155,5]
[333979151,1722664238904,-277.32253201,0.000155,5]
[333979152,1722664238915,-500.0,0.000156,5]
[333979153,1722664238926,-500.0,0.00015673,2]
[333979154,1722664238938,-500.0,0.00015674,2]
[333979156,1722664238949,-89.05208853,0.00015674,2]
[333979169,1722664239563,-410.94791147,0.00015674,2]
[333979170,1722664239572,-500.0,0.00015674,2]
[333979171,1722664239582,-200.0,0.00015674,2]
[333979172,1722664239591,-3051.60394714,0.00015696,2]
[333979173,1722664239602,-1629.96591577,0.00015696,2]
[333979174,1722664239613,-3618.22489352,0.00015696,2]
[333979175,1722664239622,-1420.14476686,0.00015696,2]
[333979176,1722664239633,-2203.88049568,0.00015696,2]
[333979177,1722664239642,-4229.76110432,0.000157,2]
[333979178,1722664239654,-1028.52477935,0.000157,2]
[333979179,1722664239665,-666.77284336,0.000157,2]
[333979180,1722664239676,-1574.94127297,0.000157,2]
[333979181,1722664239685,-162.30891768,0.000157,2]
[333979182,1722664239695,-213.41668904,0.000157,2]
[333979183,1722664239705,-500.0,0.000157,5]
[333979184,1722664239714,-184.56328383,0.000157,2]
[333979185,1722664239723,-539.7056409,0.000157,2]
[333979186,1722664239732,-6435.92557322,0.000157,2]
[333979187,1722664239743,-212.80597628,0.000157,2]
[333979188,1722664239753,-2078.64236073,0.00015719,2]
[333979189,1722664239765,-3200.79248993,0.00015719,2]
[333979190,1722664239777,-3020.35990577,0.00015719,2]
[333979191,1722664239786,-997.9113022,0.00015719,2]
[333979192,1722664239797,-445.42957939,0.00015719,2]
[333979193,1722664239808,-588.14869264,0.00015719,2]
[333979196,1722664240212,-635.20510333,0.00015719,2]
[333979197,1722664240242,-957.3305849,0.00015719,2]
[333979198,1722664240253,-2347.86980036,0.00015741,2]
[333979199,1722664240313,-5951.92495607,0.00015741,2]
[333979200,1722664240322,-3624.02526246,0.00015741,2]
[333979201,1722664240331,-8299.79475643,0.00015764,2]
[333979202,1722664240340,-3624.02526246,0.00015764,2]
[333979203,1722664240350,-200.0,0.00015773,2]
[333979204,1722664240359,-200.0,0.00015773,2]
[333979205,1722664240368,-8299.79475643,0.00015787,2]
[333979206,1722664240377,-3624.02526246,0.00015787,2]
[333979207,1722664240390,-1000.0,0.0001579,3]
[333979208,1722664240399,-1000.0,0.0001579,3]
[333979209,1722664240408,-1000.0,0.0001579,3]
[333979210,1722664240417,-1000.0,0.0001579,4]
[333979211,1722664240427,-1000.0,0.0001579,4]
[333979212,1722664240436,-1000.0,0.0001579,5]
[333979213,1722664240445,-1000.0,0.0001579,5]
[333979214,1722664240454,-1070.0,0.0001579,4]
[333979215,1722664240463,-1000.0,0.0001579,4]
[333979216,1722664240472,-1000.0,0.0001579,4]
[333979217,1722664240482,-1000.0,0.0001579,4]
[333979218,1722664240491,-1000.0,0.0001579,5]
[333979219,1722664240500,-1000.0,0.0001579,5]
[333979220,1722664240509,-1000.0,0.0001579,6]
[333979221,1722664240519,-1000.0,0.0001579,3]
[333979222,1722664240531,-1000.0,0.0001579,3]
[333979223,1722664240542,-1000.0,0.0001579,3]
[333979224,1722664240553,-1000.0,0.0001579,3]
[333979225,1722664240563,-1000.0,0.0001579,4]
[333979226,1722664240574,-1000.0,0.0001579,4]
[333979228,1722664240583,-1000.0,0.0001579,7]
[333979230,1722664240593,-1000.0,0.0001579,6]
[333979231,1722664240602,-1000.0,0.0001579,4]
[333979233,1722664240611,-1000.0,0.0001579,5]
[333979235,1722664240620,-1000.0,0.0001579,6]
[333979236,1722664240628,-1000.0,0.0001579,3]
[333979238,1722664240637,-1000.0,0.0001579,5]
[333979240,1722664240647,-1000.0,0.0001579,4]
[333979242,1722664240656,-1000.0,0.0001579,4]
[333979243,1722664240665,-1000.0,0.0001579,5]
[333979245,1722664240674,-1006.0,0.0001579,3]
[333979247,1722664240683,-1000.0,0.0001579,4]
[333979249,1722664240693,-1000.0,0.0001579,5]
[333979251,1722664240702,-1000.0,0.0001579,3]
[333979252,1722664240711,-1000.0,0.0001579,3]
[333979254,1722664240720,-1000.0,0.0001579,3]
[333979255,1722664240730,-633.0,0.0001579,4]
[333979257,1722664240739,-1000.0,0.0001579,4]
[333979259,1722664240749,-1000.0,0.0001579,3]
[333979261,1722664240758,-61476.3334727,0.00015798,2]
[333979262,1722664240767,-69833.62927125,0.00015799,2]
[333979264,1722664240778,-1174.37532872,0.00015799,2]
[333979266,1722664240787,-1509.29273388,0.00015799,5]
[333979268,1722664240797,-60698.0,0.00015799,5]
[333979270,1722664240806,-48925.5049598,0.00015799,5]
[333979271,1722664240815,-95479.92532371,0.000158,7]
[333979273,1722664240827,-58603.4587122,0.000158,7]
[333979275,1722664240838,-90053.77265661,0.000158,7]
[333979277,1722664240847,-928.0,0.000158,2]
[333979279,1722664240857,-173610.66858414,0.000158,2]
[333979280,1722664240868,-469.092,0.000158,2]
[333979281,1722664240879,-2362.440229,0.000158,2]
[333979282,1722664240891,-813.78799327,0.000158,2]
[333979317,1722664241338,-1968.21002332,0.000158,2]
[333979319,1722664241349,-31474.75,0.000158,2]
[333979321,1722664241361,-312.60966571,0.000158,2]
[333979518,1722664243233,-470.56133471,0.000158,2]
[333979665,1722664244788,-3922.35551702,0.000158,2]
[333979668,1722664244808,-485.305,0.000158,2]
[333979678,1722664244902,-566.35561271,0.000158,2]
[333979811,1722664246309,-1371.36525986,0.000158,2]
[333979848,1722664246627,-4370.54487485,0.000158,2]
[333979944,1722665432260,-1919.22464758,0.00011609,2]
[333979945,1722665432271,-370.446,0.00011609,2]
[333979946,1722665432387,-2653.5162209,0.00011609,2]
[333979947,1722665432786,-424.67574552,0.00011609,2]
[333979948,1722665432796,-1188.08606168,0.00011668,2]
[333979949,1722665432807,-463.56060471,0.00011668,2]
[333979958,1722665438238,-1789.19935657,0.00011668,2]
[333979959,1722665438253,-150.0,0.00011768,2]
[333979960,1722665438262,-5059.5485669,0.00011769,7]
[333979961,1722665438897,-8284.18896675,0.00011769,7]
[333979962,1722665438909,-2984.10053209,0.00011769,7]
[333979964,1722665438921,-7442.804616,0.00011769,7]
[333979966,1722665438933,-1288.74748519,0.00011769,7]
[333979967,1722665438945,-1613.18836489,0.00011769,7]
[333979969,1722665438957,-1217.44158,0.00011769,7]
[333979970,1722665438968,-6899.5882045,0.00011769,7]
[333979971,1722665438980,-2891.5981116,0.00011769,7]
[333979972,1722665438992,-27906.92999203,0.00011769,7]
[333979973,1722665439004,-13565.0,0.00011769,7]
[333979974,1722665439016,-24528.90035,0.00011769,7]
[333979975,1722665439027,-54170.55,0.00011769,7]
[333979976,1722665439038,-9553.154996,0.00011769,7]
[333979977,1722665439051,-9084.2900005,0.00011769,7]
[333979978,1722665439063,-13724.235,0.00011769,7]
[333979979,1722665439075,-1384.75,0.00011769,7]
[333979980,1722665439087,-5915.5,0.00011769,7]
[333979983,1722665440359,-278970.38784755,0.00011769,7]
[333979984,1722665440369,-55571.068096,0.00011769,7]
[333979985,1722665440379,-60753.0587125,0.00011769,7]
[333979986,1722665440389,-586.6,0.00012003,2]
[333979987,1722665440399,-7196.45946628,0.00012855,2]
[333979988,1722665440408,-1986.82,0.00013272,2]
[333979989,1722665440418,-4149.89737821,0.00013647,2]
[333979990,1722665440428,-151.17,0.00013699,2]
[333979991,1722665440437,-250.0,0.00013723,2]
[333979992,1722665440447,-160.88,0.00013779,2]
[333979993,1722665440457,-48866.3204004,0.000138,2]
[333979994,1722665440466,-753.69,0.00013822,2]
[333979995,1722665440476,-160.88,0.00013848,2]
[333979996,1722665440486,-1933.51,0.00013892,2]
[333979997,1722665440496,-329.37,0.00013963,2]
[333979998,1722665440505,-330.03,0.00013973,2]
[333979999,1722665440515,-4149.89737821,0.00014023,2]
[333980000,1722665440525,-586.6,0.00014267,2]
[333980001,1722665440534,-4149.89737821,0.00014398,2]
[333980002,1722665440543,-375.98,0.00014523,2]
[333980003,1722665440552,-1000.0,0.00014679,2]
[333980004,1722665440562,-153.09,0.00014696,30]
[333980005,1722665440571,-165.67,0.00014701,2]
[333980006,1722665440581,-4149.89737821,0.00014774,2]
[333980007,1722665440590,-160.88,0.00014838,2]
[333980008,1722665440600,-160.88,0.00014912,2]
[333980009,1722665440609,-267.46,0.0001511,2]
[333980010,1722665440619,-4149.89737821,0.00015149,2]
[333980011,1722665440629,-4844.84583103,0.00015336,2]
[333980012,1722665440639,-834.36,0.00015374,2]
[333980013,1722665440648,-420.52,0.00015374,2]
[333980014,1722665440657,-834.36,0.00015374,2]
[333980015,1722665440667,-840.97,0.00015374,2]
[333980016,1722665440677,-834.36,0.00015374,2]
[333980017,1722665440687,-420.52,0.00015374,2]
[333980018,1722665440697,-841.92,0.00015374,2]
[333980019,1722665440710,-834.36,0.00015374,2]
[333980020,1722665440720,-834.36,0.00015374,2]
[333980021,1722665440730,-420.52,0.00015374,2]
[333980022,1722665440739,-834.36,0.00015374,2]
[333980023,1722665440749,-834.36,0.00015374,2]
[333980024,1722665440759,-420.52,0.00015374,2]
[333980025,1722665440770,-420.52,0.00015374,2]
[333980026,1722665440780,-420.52,0.00015374,2]
[333980027,1722665440790,-609.0,0.000155,2]
[333980028,1722665440800,-4149.89737821,0.00015525,2]
[333980029,1722665440809,-500.0,0.00015674,2]
[333980030,1722665440819,-7500.0,0.0001569,2]
[333980031,1722665440830,-359.8037606,0.000157,2]
[333980032,1722665440841,-4290.61704882,0.000157,2]
[333980033,1722665440851,-200.0,0.00015773,2]
[333980034,1722665440862,-200.0,0.00015773,2]
[333980035,1722665440871,-42910.2089453,0.00015797,2]
[333980037,1722665440880,-211.89331096,0.00015799,2]
[333980039,1722665440890,-122068.57834626,0.000158,7]
[333980041,1722665440900,-786.0,0.000158,2]
[333980043,1722665440911,-22080.09841868,0.000158,2]
[333980045,1722665440921,-202823.264466,0.000158,2]
[333980047,1722665440931,-33951.08797698,0.000158,2]
[333980049,1722665440940,-2563.7675372,0.000158,2]
[333980052,1722665440950,-426.12621096,0.000158,2]
[333980055,1722665440959,-3068.13856627,0.000158,2]
[333980057,1722665440970,-1000.0,0.000158,2]
[333980060,1722665440979,-227.60153513,0.000158,2]
[333980061,1722665440989,-3647180.93979311,0.000158,2]
[333980063,1722665440999,-773.63897,0.000158,2]
[333980065,1722665441009,-359.8037606,0.000158,2]
[333980067,1722665441018,-4290.6170488,0.000158,2]
[333980069,1722665441027,-5272.8672306,0.00015808,2]
[333980071,1722665441037,-287.253907,0.00015808,2]
[333980073,1722665441046,-781.0,0.00015808,2]
[333980075,1722665441056,-2723.3776311,0.00015819,2]
[333980077,1722665441065,-200.0,0.0001583,2]
[333980079,1722665441075,-500.0,0.00015888,2]
[333980081,1722665441084,-5008.52680177,0.000159,2]
[333980082,1722665441093,-5800.0,0.000159,2]
[333980084,1722665441103,-10000.0,0.000159,2]
[333980086,1722665441112,-1259.24120384,0.000159,2]
[333980088,1722665441122,-1000.0,0.000159,2]
[333980090,1722665441131,-4149.89737821,0.000159,2]
[333980092,1722665441141,-359.8037606,0.000159,2]
[333980094,1722665441151,-5800.0,0.000159,2]
[333980096,1722665441160,-4290.6170488,0.000159,2]
[333980098,1722665441169,-156.0,0.0001591,2]
[333980100,1722665441178,-2324.8008668,0.00015989,2]
[333980101,1722665441187,-1926.2241026,0.00015989,2]
[333980103,1722665441197,-1527.6473383,0.00015989,2]
[333980105,1722665441206,-4504.7343848,0.00015989,2]
[333980107,1722665441216,-3736.601539,0.00015989,2]
[333980109,1722665441225,-2968.4686932,0.00015989,2]
[333980111,1722665441234,-287.253907,0.00015989,2]
[333980113,1722665441244,-287.253907,0.00015989,2]
[333980115,1722665441260,-287.253907,0.00015989,2]
[333980117,1722665441270,-36748.7430454,0.00015989,2]
[333980119,1722665441280,-30587.2771456,0.00015989,2]
[333980121,1722665441290,-24425.8112457,0.00015989,2]
[333980123,1722665441300,-3654.30090993,0.00015999,2]
[333980124,1722665441310,-2462.75719074,0.00016,2]
[333980126,1722665441320,-1500.0,0.00016,4]
[333980128,1722665441332,-2256.0,0.00016,2]
[333980130,1722665441342,-8879.71358228,0.00016,2]
[333980132,1722665441351,-561750.69861797,0.00016,2]
[333980146,1722665441495,-41358.24254163,0.00016,2]
[333980148,1722665441506,-72091.83589408,0.00016,2]
[333980152,1722665441529,-557.38108761,0.00016,2]
[333980154,1722665441540,-2010.93506105,0.00016,2]
[333980156,1722665441551,-389.44550813,0.00016,2]
[333980158,1722665441563,-2470.73088,0.00016,2]
[333980160,1722665441574,-1509.87606071,0.00016,2]
[333980163,1722665441588,-758.33361435,0.00016,2]
[333980165,1722665441601,-3596.5275858,0.00016,2]
[333980167,1722665441614,-645.18180464,0.00016,2]
[333980179,1722665441755,-552.928376,0.00016,2]
[333980180,1722665441768,-670.37,0.00016,2]
[333980274,1722665443335,-495107.89053983,0.00016,2]
[333980275,1722665443347,-33499.91300064,0.00016,2]
[333980276,1722665443359,-15907.44194346,0.00016,2]
[333980277,1722665443370,-407016.55673089,0.00016,2]
[333980278,1722665443381,-1936.85323252,0.00016,2]
[333980279,1722665443561,-329.7004954,0.00016,2]
[333980310,1722665444691,-1609.025,0.00016,2]
[333980311,1722665444714,-174.63,0.00013983,2]
[333980312,1722665444724,-760.58484251,0.00016,2]
[333980313,1722665444736,-1901.6000012,0.00016,2]
[333980314,1722665444753,-6466.70264291,0.00016,2]
[333980316,1722665447124,-1087.15276736,0.00016,2]
[333980317,1722665447136,-1004.84499967,0.00016,2]
[333980318,1722665447167,-892.54323916,0.00016,2]
[333980319,1722665447179,-507.75944093,0.00016,2]
[333980320,1722665447191,-430.0,0.00016,2]
[333980321,1722665447202,-1357.51086529,0.00016,2]
[333980322,1722665447214,-1844.02373852,0.00016,2]
[333980323,1722665447229,-3109.41954188,0.00016,2]
[333980324,1722665447244,-7279.0978214,0.00016,2]
[333980325,1722665447260,-459.58986104,0.00016,2]
[333980326,1722665447275,-912.85999773,0.00016,2]
[333980327,1722665447287,-62650.02224853,0.00016,2]
[333980328,1722665447304,-4566.43182891,0.00016,2]
[333980331,1722665447379,-3142.22663944,0.00016,2]
[333980332,1722665447392,-2293.52835284,0.00016,2]
[333980333,1722665447403,-340.57369398,0.00016,2]
[333980334,1722665447415,-858.99079704,0.00016,2]
[333980335,1722665447427,-2414.68677028,0.00016,2]
[333980336,1722665447439,-300.0,0.00016,2]
[333980337,1722665447451,-607.97134023,0.00016,2]
[333980338,1722665447463,-4998.0,0.00016,2]
[333980341,1722666308470,4069834.59407919,0.00011,2]
[333980346,1722666629094,-6511.29844524,0.00011769,7]
[333980380,1722666631530,-646.388186,0.00010845,2]
[333980381,1722666631541,-370.65494144,0.000109,2]
[333980382,1722666631553,-1001.55012815,0.000109,2]
[333980383,1722666631564,-439.80756164,0.000109,2]
[333980384,1722666631574,-300.0,0.00010958,2]
[333980385,1722666631584,-171.69,0.00010959,2]
[333980386,1722666631593,-95.5783111,0.00010959,2]
[333980387,1722666631606,-762.9216889,0.00010959,2]
[333980388,1722666631616,-150.0,0.00010972,2]
[333980389,1722666631633,-200.10853593,0.00010973,2]
[333980390,1722666631644,-189.73142343,0.00010973,2]
[333980391,1722666631654,-162.08791405,0.00010973,2]
[333980392,1722666631664,-195.4486223,0.00010973,2]
[333980393,1722666631677,-106.0016906,0.00010973,2]
[333980394,1722666631687,-300.15837206,0.00010973,2]
[333980395,1722666631699,-150.08138367,0.00010973,2]
[333980396,1722666631710,-150.07928288,0.00010973,2]
[333980397,1722666631721,-158.82948223,0.00010973,2]
[333980398,1722666631731,-160.08680395,0.00010973,2]
[333980399,1722666631740,-198.10510161,0.00010973,2]
[333980400,1722666631750,-160.08682886,0.00010973,2]
[333980401,1722666631759,-200.0,0.00010973,2]
[333980402,1722666631769,-200.0,0.00010973,2]
[333980403,1722666631778,-200.10852141,0.00010973,2]
[333980404,1722666631788,-158.70428788,0.00010973,2]
[333980405,1722666631798,-150.08134089,0.00010973,2]
[333980406,1722666631808,-160.08679611,0.00010973,2]
[333980407,1722666631817,-154.16,0.0001099,2]
[333980408,1722666631827,-154.16,0.0001099,2]
[333980409,1722666631837,-154.16,0.0001099,2]
[333980410,1722666631849,-154.16,0.0001099,2]
[333980411,1722666631859,-154.16,0.0001099,2]
[333980413,1722666631869,-5806.99452007,0.0001099,2]
[333980415,1722666631879,-5806.99452007,0.0001099,2]
[333980417,1722666631894,-5806.99452007,0.0001099,2]
[333980419,1722666631904,-753.9387441,0.00010997,2]
[333980421,1722666631913,-500.0,0.00010999,2]
[333980424,1722666631923,-606.15710266,0.00010999,2]
[333980426,1722666631933,-500.0,0.00010999,2]
[333980428,1722666631943,-500.0,0.00010999,2]
[333980430,1722666631952,-500.0,0.00010999,2]
[333980432,1722666631961,-500.0,0.00010999,2]
[333980434,1722666631971,-500.0,0.00010999,2]
[333980436,1722666631980,-500.0,0.00010999,2]
[333980438,1722666631989,-500.0,0.00010999,2]
[333980440,1722666631999,-500.0,0.00010999,2]
[333980442,1722666632008,-500.0,0.00010999,2]
[333980443,1722666632019,-500.0,0.00010999,2]
[333980444,1722666632029,-500.0,0.00010999,2]
[333980445,1722666632039,-500.0,0.00010999,2]